bitfinex-derivatives/quotes_SOLF0:USTF0_20250124
["timestamp","ask_amount","ask_price","bid_price","bid_amount"]
[1737749356565,3.8188,261.77,261.72,0.027682]
[1737749357069,0.02694296,261.78,261.72,0.027682]
[1737749358661,0.02694296,261.78,261.73,9.10876152]
[1737749359168,0.02694296,261.78,261.76,3.8188]
[1737749359769,3.8172,261.88,261.81,3.8181]
[1737749359969,4.64808196,261.91,261.77,9.10876152]
[1737749360568,4.64808196,261.91,261.77,12.92736152]
[1737749360866,0.02665716,261.87,261.81,0.02461647]
[1737749361066,3.8176,261.86,261.81,0.02461647]
[1737749362469,0.02665716,261.87,261.81,0.02461647]
[1737749363068,0.02665716,261.87,261.86,3.8174]
[1737749365178,0.02665716,261.87,261.84,3.8176]
[1737749366567,0.02665716,261.87,261.82,1.2647]
[1737749367174,0.02665716,261.87,261.82,5.0827]
[1737749369275,0.02665716,261.87,261.83,3.8178]
[1737749372174,0.02665716,261.87,261.82,1.2647]
[1737749372376,0.02665716,261.87,261.84,3.8177]
[1737749373977,0.02665716,261.87,261.82,1.2647]
[1737749375074,0.02665716,261.87,261.82,5.0827]
[1737749375668,0.02665716,261.87,261.83,5.82347762]
[1737749377481,0.02665716,261.87,261.86,5.82347762]
[1737749378377,0.02665716,261.87,261.86,9.64087762]
[1737749383279,5.82347762,262.0,261.9,3.8168]
[1737749383484,5.82347762,262.0,261.92,5.82347762]
[1737749383984,3.816,261.97,261.92,5.82347762]
[1737749384384,3.844711,261.97,261.92,5.84902642]
[1737749384785,3.8164,261.93,261.92,0.0255488]
[1737749385085,5.82347762,261.93,261.83,5.82347762]
[1737749385784,5.82347762,261.9,261.82,3.818]
[1737749386084,3.8172,261.88,261.82,3.818]
[1737749386283,3.8172,261.88,261.83,0.02625989]
[1737749387383,0.02736985,261.89,261.83,0.02625989]
[1737749387683,0.02736985,261.89,261.85,3.8176]
[1737749388286,0.02736985,261.89,261.83,9.66753751]
[1737749388586,0.02736985,261.89,261.83,5.84973751]
[1737749389284,3.84446985,261.89,261.83,5.84973751]
[1737749391780,0.02736985,261.89,261.83,5.84973751]
[1737749391978,0.02736985,261.89,261.85,3.8176]
[1737749393985,0.02736985,261.89,261.86,5.82347762]
[1737749394588,0.02736985,261.89,261.88,3.8172]
[1737749396987,3.8154,262.0,261.93,3.8163]
[1737749397183,3.8154,262.0,261.93,9.63977762]
[1737749397585,2.5468,262.02,261.93,5.82347762]
[1737749397779,2.5468,262.02,261.96,5.82347762]
[1737749397978,81.98367359,262.06,261.96,5.82347762]
[1737749398180,0.02595128,262.02,261.96,5.84960182]
[1737749398384,0.02595128,262.02,261.99,9.63907762]
[1737749399691,0.02595128,262.02,261.99,3.8156]
[1737749400585,0.02595128,262.02,261.98,9.08880152]
[1737749402186,0.02595128,262.02,261.96,0.0261242]
[1737749403192,0.02595128,262.02,261.98,3.8157]
[1737749406493,0.02595128,262.02,262.0,3.8154]
[1737749408587,0.02595128,262.02,261.96,0.0261242]
[1737749408789,0.02595128,262.02,261.98,3.8156]
[1737749408994,0.02595128,262.02,261.96,0.0261242]
[1737749409789,3.8158,261.97,261.96,0.0261242]
[1737749410798,3.8157,261.99,261.96,0.0261242]
[1737749410992,0.02595128,262.02,261.96,0.0261242]
[1737749411498,3.8158,261.97,261.96,0.0261242]
[1737749412597,9.08880152,262.0,261.84,1.2419]
[1737749412797,9.08880152,262.0,261.82,9.08880152]
[1737749413092,3.8307,262.01,261.69,9.08880152]
[1737749413093,9.08880152,261.88,261.69,9.08880152]
[1737749413292,3.8181,261.82,261.69,9.08880152]
[1737749413493,3.9058,261.87,261.69,9.08880152]
[1737749413692,1.2899,261.86,261.69,9.08880152]
[1737749413895,0.0255509,261.81,261.75,0.02632642]
[1737749414499,3.8187,261.78,261.75,0.02632642]
[1737749416101,3.8184,261.8,261.75,0.02632642]
[1737749416798,3.8185,261.79,261.75,0.02632642]
[1737749417596,3.8188,261.77,261.75,0.02632642]
[1737749419804,0.0255509,261.81,261.75,0.02632642]
[1737749420908,3.8188,261.77,261.75,0.02632642]
[1737749421806,3.8189,261.76,261.75,0.02632642]
[1737749423209,3.8187,261.78,261.75,0.02632642]
[1737749424208,3.8184,261.8,261.75,0.02632642]
[1737749424807,3.8437509,261.81,261.75,0.02632642]
[1737749426211,3.8437509,261.81,261.75,3.84532642]
[1737749427216,0.0255509,261.81,261.75,3.84532642]
[1737749427415,3.8184,261.8,261.75,3.84532642]
[1737749428611,0.0255509,261.81,261.75,3.84532642]
[1737749428913,3.8185,261.79,261.75,3.84532642]
[1737749429515,3.8189,261.76,261.75,0.02632642]
[1737749432515,9.08880152,261.76,261.62,1.3089]
[1737749433118,3.8195,261.72,261.62,5.1298]
[1737749433415,9.08880152,261.76,261.62,1.3089]
[1737749433614,0.02587185,261.7,261.64,0.02936144]
[1737749434317,3.8204,261.66,261.64,0.02936144]
[1737749434916,3.8202,261.68,261.64,0.02936144]
[1737749435518,3.8205,261.65,261.64,0.02936144]
[1737749436718,3.8201,261.68,261.64,0.02936144]
[1737749436916,0.02587185,261.7,261.64,0.02936144]
[1737749437717,0.02587185,261.7,261.66,3.8203]
[1737749437918,0.02587185,261.7,261.64,0.02936144]
[1737749438821,0.02587185,261.7,261.64,9.11816296]
[1737749439221,0.02587185,261.7,261.69,3.8199]
[1737749442022,3.8189,261.76,261.69,3.8199]
[1737749442224,11.68880152,261.82,261.64,9.08880152]
[1737749442424,11.68880152,261.82,261.67,3.8201]
[1737749442724,11.68880152,261.82,261.64,9.08880152]
[1737749442924,0.02692199,261.76,261.7,0.02559839]
[1737749443727,3.8192,261.74,261.7,0.02559839]
[1737749444428,3.84592199,261.76,261.7,0.02559839]
[1737749444622,0.02692199,261.76,261.7,0.02559839]
[1737749444924,0.02692199,261.76,261.74,3.8192]
[1737749445126,0.02692199,261.76,261.7,0.02559839]
[1737749446125,0.02692199,261.76,261.72,3.8193]
[1737749446729,0.02692199,261.76,261.7,0.02559839]
[1737749446930,0.02692199,261.76,261.73,3.8192]
[1737749447423,0.02692199,261.76,261.7,0.02559839]
[1737749449628,0.02692199,261.76,261.72,3.8194]
[1737749450734,0.02692199,261.76,261.73,3.8193]
[1737749455637,0.02692199,261.76,261.74,3.8192]
[1737749457040,0.02692199,261.76,261.75,3.8191]
[1737749461444,3.8177,261.85,261.72,9.08880152]
[1737749461644,3.8177,261.85,261.79,3.8183]
[1737749462646,3.84336734,261.85,261.79,3.84478404]
[1737749463846,0.02566734,261.85,261.82,3.818]
[1737749464146,0.02566734,261.85,261.8,9.08880152]
[1737749464352,0.02566734,261.85,261.8,10.34380152]
[1737749465047,172.60823233,261.97,261.84,9.08880152]
[1737749465244,9.08880152,261.98,261.84,9.08880152]
[1737749466150,3.8163,261.94,261.87,3.8172]
[1737749466449,0.0251366,261.94,261.88,0.0278522]
[1737749466652,0.0251366,261.94,261.9,3.8168]
[1737749468847,0.0251366,261.94,261.88,9.11665372]
[1737749469048,0.0251366,261.94,261.91,3.8166]
[1737749470150,0.0251366,261.94,261.88,9.11665372]
[1737749470445,0.0251366,261.94,261.88,0.0278522]
[1737749471149,3.817,261.9,261.88,0.0278522]
[1737749472451,3.817,261.89,261.88,0.0278522]
[1737749472647,0.0251366,261.94,261.88,0.0278522]
[1737749473449,3.8168,261.91,261.88,0.0278522]
[1737749474951,0.0251366,261.94,261.88,0.0278522]
[1737749475152,3.8414366,261.94,261.89,3.817]
[1737749476152,0.0251366,261.94,261.88,0.0278522]
[1737749478050,3.8169,261.9,261.88,0.0278522]
[1737749478552,3.8165,261.93,261.88,0.0278522]
[1737749478752,0.0251366,261.94,261.88,0.0278522]
[1737749479255,3.8169,261.91,261.88,0.0278522]
[1737749479856,0.0251366,261.94,261.9,5.82187512]
[1737749480357,3.8415366,261.94,261.9,9.63877512]
[1737749481756,0.0251366,261.94,261.93,5.82187512]
[1737749481959,85.8611821,262.04,261.93,5.82187512]
[1737749481960,80.58925926,262.04,261.93,5.82187512]
[1737749482256,80.58925926,262.04,261.97,5.82187512]
[1737749482859,84.40405926,262.04,261.98,3.8157]
[1737749483260,80.61781756,262.04,261.98,3.84473802]
[1737749484153,3.815,262.03,261.98,3.84473802]
[1737749484452,0.0285583,262.04,261.98,0.02903802]
[1737749484657,0.0285583,262.04,261.99,9.08891501]
[1737749484955,5.27192284,262.12,261.99,9.08891501]
[1737749485456,5.27192284,262.12,262.03,9.08891501]
[1737749485657,3.8138,262.11,262.04,3.8147]
[1737749486160,0.02876156,262.1,262.05,0.02648063]
[1737749487456,0.02876156,262.1,262.07,3.8144]
[1737749487759,0.02876156,262.1,262.05,0.02648063]
[1737749487958,0.02876156,262.1,262.07,9.08891501]
[1737749488156,0.02876156,262.1,262.09,3.8141]
[1737749488361,0.02876156,262.1,262.07,9.08891501]
[1737749488561,0.02876156,262.1,262.08,3.8142]
[1737749489262,0.02876156,262.1,262.09,3.8141]
[1737749491860,0.02876156,262.1,262.07,12.90321501]
[1737749492062,0.02876156,262.1,262.07,9.08891501]
[1737749492563,0.02876156,262.1,262.09,3.8141]
[1737749492760,172.60823233,262.22,262.07,9.08891501]
[1737749492957,3.8123,262.22,262.12,3.8136]
[1737749493160,3.8123,262.22,262.11,9.08891501]
[1737749493462,2.58,262.26,262.11,9.08891501]
[1737749493965,0.02673632,262.21,262.16,0.02612359]
[1737749494866,0.02673632,262.21,262.19,9.08891501]
[1737749495564,0.02673632,262.21,262.2,3.8125]
[1737749499767,7.71398429,262.34,262.19,9.08891501]
[1737749500070,7.71398429,262.34,262.28,3.8113]
[1737749500663,7.71398429,262.34,262.24,9.08891501]
[1737749500865,7.71398429,262.34,262.26,3.8115]
[1737749500866,3.8106,262.33,262.26,3.8115]
[1737749501065,0.02618281,262.32,262.26,0.02873616]
[1737749501368,3.8115,262.27,262.26,0.02873616]
[1737749502968,3.8117,262.26,262.13,1.2921]
[1737749503169,9.08891501,262.31,262.2,3.8125]
[1737749503370,9.08891501,262.31,262.13,1.2921]
[1737749503568,3.8121,262.23,261.95,9.08891501]
[1737749503770,9.08891501,262.31,262.16,3.8131]
[1737749504266,0.02719618,262.26,262.21,0.02484321]
[1737749506270,3.812,262.24,262.21,0.02484321]
[1737749507876,0.02719618,262.26,262.21,0.02484321]
[1737749508473,3.8122,262.22,262.21,0.02484321]
[1737749508668,0.02719618,262.26,262.21,0.02484321]
[1737749509078,3.8121,262.23,262.21,0.02484321]
[1737749509277,0.02719618,262.26,262.21,0.02484321]
[1737749509978,3.8119,262.24,262.21,0.02484321]
[1737749510278,0.02719618,262.26,262.21,0.02484321]
[1737749510477,3.8122,262.22,262.21,0.02484321]
[1737749524095,3.8135,262.13,262.11,5.80817931]
[1737749524297,5.80817931,262.23,262.11,5.80817931]
[1737749524593,5.80817931,262.2,262.11,5.80817931]
[1737749524795,5.80817931,262.17,262.08,5.80817931]
[1737749525393,0.0276049,262.15,262.1,0.02468655]
[1737749525790,3.8138,262.11,262.1,0.02468655]
[1737749530490,5.80817931,262.11,261.99,5.80817931]
[1737749530695,5.80817931,262.08,261.99,5.80817931]
[1737749531094,3.8154,262.01,261.99,5.80817931]
[1737749531298,5.80817931,262.08,261.99,5.80817931]
[1737749531591,0.02560605,262.06,262.01,0.02406463]
[1737749531998,0.02560605,262.06,262.02,5.80817931]
[1737749532296,0.02560605,262.06,262.03,3.815]
[1737749534394,0.02560605,262.06,262.02,9.62327931]
[1737749535197,3.84010605,262.06,262.02,9.62327931]
[1737749535699,3.84010605,262.06,262.02,3.8151]
[1737749540597,3.815,262.03,262.01,0.02406463]
[1737749540803,0.02560605,262.06,262.01,0.02406463]
[1737749541300,3.8151,262.02,262.01,0.02406463]
[1737749543803,3.815,262.04,262.01,0.02406463]
[1737749545604,3.815,262.03,262.01,0.02406463]
[1737749546301,3.815,262.04,262.01,0.02406463]
[1737749546603,0.02560605,262.06,262.01,0.02406463]
[1737749546799,3.8151,262.02,262.01,0.02406463]
[1737749547106,9.08607944,262.05,261.87,9.08607944]
[1737749547301,9.08607944,262.01,261.86,2.5177]
[1737749547497,11.66607944,262.01,261.86,2.5177]
[1737749547904,11.66607944,262.01,261.86,1.2501]
[1737749548306,0.02592167,261.96,261.91,0.02933543]
[1737749548805,3.8166,261.92,261.91,0.02933543]
[1737749551603,0.02592167,261.96,261.93,3.8163]
[1737749551808,0.02592167,261.96,261.91,0.02933543]
[1737749552210,0.02592167,261.96,261.91,9.11541487]
[1737749554210,0.02592167,261.96,261.93,3.8163]
[1737749554506,0.02592167,261.96,261.91,9.11541487]
[1737749556213,0.02592167,261.96,261.93,3.8164]
[1737749556810,3.84192167,261.96,261.91,9.11541487]
[1737749557012,0.02592167,261.96,261.91,0.02933543]
[1737749558113,3.8165,261.93,261.91,0.02933543]
[1737749558314,0.02592167,261.96,261.91,0.02933543]
[1737749558808,3.8165,261.93,261.91,0.02933543]
[1737749561508,0.02592167,261.96,261.91,0.02933543]
[1737749561712,3.8163,261.94,261.91,0.02933543]
[1737749563016,0.02592167,261.96,261.95,3.8161]
[1737749567818,3.815,262.03,261.98,3.8156]
[1737749568322,176.40803233,262.1,261.95,9.08607944]
[1737749568921,3.8149,262.04,262.0,0.02622649]
[1737749569216,0.02411015,262.05,262.0,0.02622649]
[1737749569922,3.8149,262.04,262.0,3.84152649]
[1737749570317,0.02411015,262.05,262.0,0.02622649]
[1737749571021,0.02411015,262.05,262.03,3.8149]
[1737749571923,0.02411015,262.05,262.0,0.02622649]
[1737749572123,0.02411015,262.05,262.02,3.8151]
[1737749576127,3.83881015,262.05,262.02,3.8151]
[1737749576425,0.02411015,262.05,262.0,0.02622649]
[1737749576725,3.8149,262.04,262.0,0.02622649]
[1737749576917,0.02411015,262.05,262.0,0.02622649]
[1737749578224,3.815,262.03,262.0,0.02622649]
[1737749580325,0.02411015,262.05,262.02,3.815]
[1737749580531,0.02411015,262.05,262.0,0.02622649]
[1737749581126,0.02411015,262.05,262.04,3.8148]
[1737749581522,0.02411015,262.05,262.03,3.815]
[1737749582019,10.39347944,262.17,262.03,3.815]
[1737749582020,1.3074,262.17,262.03,9.08607944]
[1737749582223,1.3166,262.18,262.03,9.08607944]
[1737749582728,5.27192284,262.2,262.07,9.08607944]
[1737749583126,3.84235648,262.16,262.11,3.8137]
[1737749583330,3.84235648,262.16,262.11,3.84215478]
[1737749583927,3.84235648,262.16,262.11,0.02845478]
[1737749584424,0.02915648,262.16,262.11,0.02845478]
[1737749584825,0.02915648,262.16,262.11,9.11453422]
[1737749585532,0.02915648,262.16,262.15,9.08607944]
[1737749585930,84.22353478,262.26,262.15,9.08607944]
[1737749586128,6.53992284,262.29,262.15,9.08607944]
[1737749586331,5.27192284,262.29,262.15,9.08607944]
[1737749586535,5.27192284,262.29,262.18,3.8127]
[1737749587237,0.02871965,262.26,262.21,0.02470197]
[1737749588240,3.8119,262.25,262.21,0.02470197]
[1737749588536,0.02871965,262.26,262.21,0.02470197]
[1737749589237,3.8122,262.22,262.21,0.02470197]
[1737749590436,0.02871965,262.26,262.11,9.08607944]
[1737749590732,3.8128,262.18,262.11,9.08607944]
[1737749590942,9.08607944,262.28,262.12,3.8137]
[1737749591137,3.8131,262.16,262.07,9.08607944]
[1737749591342,9.08607944,262.28,262.07,9.08607944]
[1737749591637,0.02654879,262.2,262.15,0.02848231]
[1737749591839,3.8132,262.16,262.15,0.02848231]
[1737749592233,0.02654879,262.2,262.15,0.02848231]
[1737749592436,3.8131,262.16,262.15,0.02848231]
[1737749595138,3.8131,262.16,262.15,8.231e-05]
[1737749600740,12.89917944,262.16,262.15,8.231e-05]
[1737749600944,12.89917944,262.16,261.95,9.08607944]
[1737749600945,9.08607944,262.16,261.95,9.08607944]
[1737749601637,3.8148,262.05,261.95,9.08607944]
[1737749601835,173.88423233,262.17,261.97,3.8157]
[1737749602136,9.08607944,262.12,261.97,3.8157]
[1737749602337,0.0241027,262.1,262.04,0.02835064]
[1737749602939,3.8142,262.09,262.04,0.02835064]
[1737749603242,0.0241027,262.1,262.04,0.02835064]
[1737749603640,3.8143,262.08,262.04,0.02835064]
[1737749603841,3.8143,262.08,262.04,3.84315064]
[1737749604238,0.0241027,262.1,262.04,3.84315064]
[1737749604239,0.0241027,262.1,262.04,0.02835064]
[1737749604446,0.0241027,262.1,262.06,3.8145]
[1737749606145,3.8381027,262.1,262.06,3.8145]
[1737749606348,0.0241027,262.1,262.06,3.8145]
[1737749606748,0.0241027,262.1,262.04,0.02835064]
[1737749607754,3.8147,262.05,262.04,0.02835064]
[1737749608750,0.0241027,262.1,262.04,0.02835064]
[1737749610152,3.8147,262.06,262.04,0.02835064]
[1737749610852,0.0241027,262.1,262.04,0.02835064]
[1737749611054,3.8147,262.05,262.04,0.02835064]
[1737749616251,3.8145,262.07,262.04,0.02835064]
[1737749616457,0.0241027,262.1,262.04,0.02835064]
[1737749617255,3.8146,262.06,262.04,0.02835064]
[1737749617961,0.0241027,262.1,262.04,0.02835064]
[1737749620064,0.0241027,262.1,262.05,3.8146]
[1737749620360,0.0241027,262.1,262.04,0.02835064]
[1737749621062,3.8381027,262.1,262.06,3.8145]
[1737749621463,0.0241027,262.1,262.04,0.02835064]
[1737749621762,0.0241027,262.1,262.07,3.8143]
[1737749623366,3.8381027,262.1,262.07,3.8143]
[1737749624765,0.0241027,262.1,262.04,1.32445064]
[1737749624970,0.0241027,262.1,262.04,0.02835064]
[1737749626171,3.8146,262.06,262.04,0.02835064]
[1737749627266,3.8144,262.08,262.04,0.02835064]
[1737749627862,0.0241027,262.1,262.07,5.8154614]
[1737749628568,3.8381027,262.1,262.07,5.8154614]
[1737749630568,3.8142,262.09,262.07,5.8154614]
[1737749630771,5.8154614,262.08,262.04,0.02835064]
[1737749631072,5.8154614,262.05,262.04,0.02835064]
[1737749631272,5.8154614,262.05,261.92,5.8154614]
[1737749631474,5.8154614,261.99,261.89,5.8154614]
[1737749631667,3.8166,261.92,261.86,5.8154614]
[1737749631863,5.8154614,261.96,261.86,5.8154614]
[1737749632368,5.8154614,261.9,261.81,1.2245]
[1737749632573,5.8154614,261.9,261.88,0.02875103]
[1737749632871,5.8154614,261.9,261.8,5.8154614]
[1737749633072,5.8154614,261.9,261.86,0.02924475]
[1737749633675,2.58,261.91,261.86,0.02924475]
[1737749633872,6.3968,261.91,261.86,0.02924475]
[1737749634072,2.58,261.91,261.86,0.02924475]
[1737749634469,3.8173,261.88,261.86,0.02924475]
[1737749636069,12.91787681,261.88,261.86,4.475e-05]
[1737749640374,3.8173,261.88,261.86,4.475e-05]
[1737749643682,9.10057681,261.87,261.86,4.475e-05]
[1737749643986,3.8179,261.83,261.73,2.5246]
[1737749644183,9.10057681,261.87,261.73,2.5246]
[1737749644786,3.8179,261.83,261.73,6.3439]
[1737749644982,9.10057681,261.87,261.73,2.5246]
[1737749645186,0.02471783,261.81,261.75,0.02698514]
[1737749646082,0.02471783,261.81,261.77,3.8187]
[1737749646590,0.02471783,261.81,261.75,0.02698514]
[1737749647888,0.02471783,261.81,261.77,3.8187]
[1737749649692,0.02471783,261.81,261.79,3.8185]
[1737749649892,0.02471783,261.81,261.75,0.02698514]
[1737749650191,0.02471783,261.81,261.78,3.8185]
[1737749650393,0.02471783,261.81,261.75,0.02698514]
[1737749651088,0.02471783,261.81,261.78,3.8185]
[1737749653687,0.02471783,261.81,261.75,0.02698514]
[1737749654193,3.84301783,261.81,261.76,3.8189]
[1737749656389,3.8188,261.77,261.75,0.02698514]
[1737749657495,3.8186,261.79,261.75,0.02698514]
[1737749657995,0.02471783,261.81,261.75,0.02698514]
[1737749658196,3.8186,261.78,261.75,0.02698514]
[1737749660597,3.8188,261.77,261.75,0.02698514]
[1737749660794,9.12529464,261.81,261.75,0.02698514]
[1737749661197,3.8189,261.76,261.75,0.02698514]
[1737749661797,9.65023991,261.76,261.75,0.02698514]
[1737749662798,0.02471783,261.81,261.75,0.02698514]
[1737749664099,3.8185,261.79,261.75,3.84598514]
[1737749666502,5.83133991,261.79,261.75,0.02698514]
[1737749668200,3.8189,261.76,261.75,0.02698514]
[1737749669502,3.8187,261.78,261.75,0.02698514]
[1737749669703,5.83133991,261.79,261.75,0.02698514]
[1737749669902,0.02471783,261.81,261.75,0.02698514]
[1737749670108,0.02471783,261.81,261.75,5.85832505]
[1737749670602,0.02471783,261.81,261.76,1.2429]
[1737749672099,0.02471783,261.81,261.78,3.8185]
[1737749672402,0.02471783,261.81,261.78,5.83133991]
[1737749672602,0.02471783,261.81,261.76,1.2429]
[1737749672999,0.02471783,261.81,261.75,0.02698514]
[1737749673201,3.8189,261.76,261.75,0.02698514]
[1737749674201,0.02471783,261.81,261.75,5.85832505]
[1737749674405,5.27192284,261.9,261.78,5.83133991]
[1737749674606,5.27192284,261.9,261.83,5.83133991]
[1737749675708,0.02603042,261.89,261.84,0.02932297]
[1737749675904,9.08882284,261.9,261.8,9.09888261]
[1737749676100,0.02449062,261.89,261.84,0.02499229]
[1737749677108,0.02449062,261.89,261.85,3.8175]
[1737749677307,0.02449062,261.89,261.84,0.02499229]
[1737749677506,0.02449062,261.89,261.88,3.8172]
[1737749678205,3.8158,261.98,261.84,9.1238749]
[1737749678400,3.8158,261.98,261.92,3.8165]
[1737749678600,84.30981044,261.99,261.84,9.09888261]
[1737749678806,84.30981044,261.99,261.94,3.8162]
[1737749679106,84.30981044,261.99,261.88,9.09888261]
[1737749679301,0.02448579,261.96,261.91,0.02650838]
[1737749679900,0.02448579,261.96,261.95,3.8161]
[1737749682517,2.35495,262.02,261.99,3.8155]
[1737749682713,2.35495,262.02,261.92,9.09888261]
[1737749683314,2.35495,262.02,262.01,3.8153]
[1737749686823,0.02410196,262.04,262.0,1.313]
[1737749687022,0.02410196,262.04,262.03,3.815]
[1737749687425,2.58,262.13,262.0,10.41188261]
[1737749687626,6.83584805,262.22,262.08,9.09888261]
[1737749687822,15.93473066,262.22,262.08,9.09888261]
[1737749688022,15.93473066,262.22,262.04,9.09888261]
[1737749688323,15.93473066,262.22,262.08,3.8141]
[1737749688726,0.02448634,262.18,262.12,0.02498975]
[1737749689218,3.8133,262.15,262.12,0.02498975]
[1737749690621,9.12336895,262.18,262.0,10.41188261]
[1737749690825,9.09888261,262.14,262.0,1.313]
[1737749691424,3.8146,262.06,262.01,3.8152]
[1737749691826,3.84250692,262.06,262.01,3.84197384]
[1737749692527,3.8148,262.05,262.01,0.02677384]
[1737749695429,0.02790692,262.06,262.01,0.02677384]
[1737749695728,3.8148,262.04,262.01,0.02677384]
[1737749696731,3.8151,262.02,262.01,0.02677384]
[1737749699732,0.02790692,262.06,261.87,9.09888261]
[1737749699733,9.12678953,262.06,261.87,9.09888261]
[1737749700036,9.09888261,262.02,261.86,1.3196]
[1737749700235,1.2695,262.01,261.86,1.3196]
[1737749700435,9.09888261,261.98,261.83,10.34348261]
[1737749700640,9.09888261,261.98,261.83,1.2446]
[1737749700836,0.02718065,261.93,261.88,0.02586756]
[1737749701037,3.817,261.89,261.88,0.02586756]
[1737749701537,3.8181,261.82,261.77,1.3258]
[1737749701734,9.09888261,261.93,261.77,1.3258]
[1737749702536,1.309,261.92,261.77,1.3258]
[1737749702732,0.02861917,261.88,261.82,0.02604974]
[1737749703338,3.8174,261.87,261.82,0.02604974]
[1737749703538,0.02861917,261.88,261.82,0.02604974]
[1737749704634,0.02861917,261.88,261.82,9.12493235]
[1737749705037,0.02861917,261.88,261.83,1.2217]
[1737749706137,0.02861917,261.88,261.86,3.8174]
[1737749708442,0.02861917,261.88,261.83,1.2217]
[1737749708742,0.02861917,261.88,261.82,0.02604974]
[1737749710140,0.02861917,261.88,261.83,3.8179]
[1737749710741,0.02861917,261.88,261.86,3.8174]
[1737749710941,0.02861917,261.88,261.82,9.12493235]
[1737749711343,0.02861917,261.88,261.87,3.8173]
[1737749711736,0.02861917,261.88,261.83,1.2097]
[1737749711936,3.8173,261.87,261.83,5.0276]
[1737749712141,0.02861917,261.88,261.82,0.02604974]
[1737749712342,3.8179,261.84,261.82,0.02604974]
[1737749712541,0.02861917,261.88,261.82,0.02604974]
[1737749713441,0.02861917,261.88,261.71,2.4701]
[1737749713640,2.4468,261.88,261.71,2.4701]
[1737749713841,2.4468,261.88,261.71,6.2896]
[1737749714244,2.4468,261.88,261.71,2.4701]
[1737749714444,3.8188,261.77,261.71,3.8196]
[1737749714645,0.02764084,261.82,261.77,0.02765802]
[1737749714944,3.8183,261.8,261.74,3.8192]
[1737749715141,3.8183,261.8,261.77,0.02580753]
[1737749715845,3.84496375,261.82,261.77,0.02580753]
[1737749717048,0.02686375,261.82,261.79,3.8185]
[1737749717247,0.02686375,261.82,261.77,0.02580753]
[1737749717848,0.02686375,261.82,261.79,3.8184]
[1737749718245,0.02686375,261.82,261.77,0.02580753]
[1737749720741,0.02686375,261.82,261.72,3.8194]
[1737749720952,3.8191,261.75,261.7,3.8197]
[1737749721149,9.09888261,261.83,261.66,9.09888261]
[1737749721346,1.2505,261.82,261.66,9.09888261]
[1737749721849,0.02578938,261.77,261.71,3.84800725]
[1737749722243,0.02578938,261.77,261.71,0.02840725]
[1737749722949,0.02578938,261.77,261.73,3.8193]
[1737749723149,0.02578938,261.77,261.71,0.02840725]
[1737749723345,3.819,261.76,261.71,3.84790725]
[1737749723650,0.02578938,261.77,261.71,3.84790725]
[1737749725152,3.8191,261.75,261.71,3.84790725]
[1737749727753,3.84468938,261.77,261.71,3.84790725]
[1737749728154,0.02578938,261.77,261.71,3.84790725]
[1737749728350,3.8191,261.75,261.71,3.84790725]
[1737749728551,0.02578938,261.77,261.71,0.02840725]
[1737749729252,3.8191,261.75,261.71,3.84800725]
[1737749729454,9.09888261,261.74,261.44,192.0]
[1737749729757,9.09888261,261.7,261.58,3.8214]
[1737749730054,9.09888261,261.7,261.51,1.3247]
[1737749730254,1.2309,261.69,261.51,1.3247]
[1737749730649,3.8213,261.6,261.57,0.02858373]
[1737749731049,0.02467269,261.63,261.57,0.02858373]
[1737749732145,3.8211,261.62,261.57,0.02858373]
[1737749732347,0.02467269,261.63,261.57,0.02858373]
[1737749732854,3.8211,261.61,261.57,0.02858373]
[1737749733752,0.02467269,261.63,261.57,0.02858373]
[1737749733955,3.8213,261.6,261.57,0.02858373]
[1737749736155,0.02467269,261.63,261.57,0.02858373]
[1737749736555,0.02467269,261.63,261.6,3.8212]
[1737749738257,0.02467269,261.63,261.61,3.8211]
[1737749738559,0.02467269,261.63,261.57,0.02858373]
[1737749740051,3.84557269,261.63,261.59,3.8213]
[1737749741358,0.02467269,261.63,261.57,0.02858373]
[1737749741552,3.8215,261.58,261.57,0.02858373]
[1737749741958,0.02467269,261.63,261.57,0.02858373]
[1737749743161,3.8212,261.61,261.57,3.85028373]
[1737749743461,0.02467269,261.63,261.57,0.02858373]
[1737749744153,0.02467269,261.63,261.6,3.8212]
[1737749744753,3.84557269,261.63,261.59,3.8213]
[1737749746263,0.02467269,261.63,261.59,3.8213]
[1737749748461,3.84547269,261.63,261.59,3.8213]
[1737749749871,3.821,261.62,261.58,3.8215]
[1737749750263,3.8215,261.58,261.57,0.02858373]
[1737749753573,9.09888261,261.62,261.46,1.2469]
[1737749753773,3.8224,261.52,261.48,3.823]
[1737749754074,1.3169,261.61,261.4,9.09888261]